Cogmind - Beta 17.1 @@@ ROGUE MODE // 2026.09.17 @ 03:06:53 Player: KURIIRI Result: Self-destructed Performance ------------- Evolutions (3) 1500 Regions Visited (9) 1800 Robots Destroyed (241) 1205 Value Destroyed (7824) 7824 Prototype IDs (15) 300 Alien Tech Used (0) 0 Bonus (16465) 16465 TOTAL SCORE: 29094 Bonus ------- High Alert Combat Kills 1551 Follower Combat Kills 618 Prayed to X0-1V1 5000 Major X0-1V1 Interference 7800 Entered Garrisons 600 Used RIF Installer 1000 Friendly Fire -104 Cogmind --------- Core Integrity 82/520 Matter 10/300 Energy 280/280 System Corruption 3% Temperature Cool (0) Movement Hovering (118) Location -7/Garrison Parts ------- > --- POWER (2) -------- Multi-Deuterium Engine > --- PROPULSION (5) --- Hovering Airjet-Gravjet Exoskeleton > --- UTILITY (4) ------ Armored Scrap Engine High-capacity Storage Unit Relay Coupler [Grunt] (11) > --- WEAPON (3) ------- Precision Grenade Launcher > --- INVENTORY (20) --- Advanced Treads Advanced Heat Sink Advanced Heat Sink Improved Cooling System Large Storage Unit Huge Storage Unit Weight Redist. System Core Analyzer Weapon Cycler Improved Weapon Cycler Layered Light Armor Plating Layered Light Armor Plating Improved Shield Generator Hacking Suite Relay Coupler [NC] (22) Great Maul Peak State ------------ > --- POWER ------------ Multi-Deuterium Engine > --- PROPULSION ------- Hovering Airjet-Gravjet Exoskeleton > --- UTILITY ---------- Armored Scrap Engine High-capacity Storage Unit Relay Coupler [Sentry] > --- WEAPON ----------- Precision Grenade Launcher Remote Datajack Shotgun EM Proton Construct/C > --- INVENTORY -------- Advanced Heat Sink Advanced Heat Sink Improved Cooling System Large Storage Unit Core Analyzer Weapon Cycler Improved Weapon Cycler Layered Light Armor Plating Layered Light Armor Plating Improved Shield Generator Relay Coupler [NC] Relay Coupler [Sentry] Proton Cannon Heavy Missile Launcher Maul Great Maul [Rating: 87] Favorites ----------- Power Constructs Engine Constructs Power Core Nuclear Core Propulsion Light Treads Treads Light Treads Leg Aluminum Leg Wheel Wheel Hover Unit Constructs Utility Large Storage Unit Device Armored Scrap Engine Storage Large Storage Unit Processor Improved Signal Interpreter Hackware Relay Coupler [Sentry] Protection Hardened Light Armor Plating Weapon Advanced Beam Cannon Energy Gun Small Laser Energy Cannon Advanced Beam Cannon Ballistic Gun Assault Rifle Ballistic Cannon Constructs Launcher Grenade Launcher Special Weapon Remote Datajack Impact Weapon Great Maul Special Melee Weapon Improved Datajack Build | -11 -10 -9 -9 -9 -9 -7 -7 -7 -7 ------- Run | Yrd Mat Mat Sto Gar Rec Fac Gar Fac Gar Slots Evolved 6 | . . 2 . . . 4 . . . Power . | . . . . . . . . . . Propulsion 2 | . . 1 . . . 1 . . . Utility 2 | . . . . . . 2 . . . Weapon 2 | . . 1 . . . 1 . . . Parts Attached 93 | 3 17 23 9 6 3 13 8 9 2 Power 11 | . 2 4 2 . 2 1 . . . Engine 9 | . 1 4 2 . 2 . . . . Core 2 | . 1 . . . . 1 . . . Reactor . | . . . . . . . . . . Propulsion 17 | 2 3 8 . 3 . 1 . . . Treads 13 | 2 1 7 . 3 . . . . . Leg . | . . . . . . . . . . Wheel 4 | . 2 1 . . . 1 . . . Hover . | . . . . . . . . . . Flight . | . . . . . . . . . . Utility 31 | 1 4 2 2 1 1 7 5 7 1 Device 15 | 1 1 1 2 1 1 6 . 2 . Storage 4 | . 2 . . . . . 1 1 . Processor 1 | . . . . . . 1 . . . Hackware 8 | . . . . . . . 3 4 1 Protection 3 | . 1 1 . . . . 1 . . Artifact . | . . . . . . . . . . Weapon 34 | . 8 9 5 2 . 4 3 2 1 Energy Gun 2 | . . . 1 . . . . 1 . Energy Cannon 11 | . . 6 3 2 . . . . . Ballistic Gun 5 | . 3 1 1 . . . . . . Ballistic Cannon 5 | . 2 2 . . . 1 . . . Launcher 6 | . 2 . . . . 2 1 1 . Special Weapon 2 | . . . . . . . 1 . 1 Impact Weapon 1 | . . . . . . 1 . . . Slashing Weapon . | . . . . . . . . . . Piercing Weapon . | . . . . . . . . . . Special Melee Weapon 2 | . 1 . . . . . 1 . . Unidentified Prototypes 10 | . 1 1 3 . 1 2 . 2 . Parts Lost 16 | . . 9 . 2 . . 1 . 4 Power 3 | . . 3 . . . . . . . Propulsion 3 | . . 2 . 1 . . . . . Utility 2 | . . 1 . . . . 1 . . Weapon 8 | . . 3 . 1 . . . . 4 Highest Loss Streak 4 | . . 4 . 1 . . 1 . 1 To Critical Strikes . | . . . . . . . . . . Average Backups 13 | 5 10 14 15 14 8 10 17 17 16 Power . | 1 1 . . 1 . . . . . Propulsion 2 | 3 4 4 5 3 1 . . . 1 Utility 6 | . 1 2 1 3 3 7 11 12 13 Weapon 4 | 1 2 6 7 6 3 2 4 4 1 Tool/Special . | . . . . . . . . . . Unused Backups 40 | . 6 5 2 2 4 2 6 1 12 Power 4 | . 2 . . 1 . . 1 . . Propulsion 4 | . . . 2 . 1 . . . 1 Utility 18 | . 1 2 . . 1 2 1 . 11 Weapon 14 | . 3 3 . 1 2 . 4 1 . Tool/Special . | . . . . . . . . . . Average Slot Usage (%) 75 | . 100 94 99 98 71 57 55 46 53 Engine 6 | . 11 8 10 10 9 3 2 . 6 Core 3 | . 2 . . . 2 9 6 7 . Treads 15 | . 24 19 33 32 20 2 . 4 . Wheel 2 | . 3 12 . . 2 2 . . . Hover 1 | . . . . . . . 4 2 6 Device 8 | . 6 9 10 10 10 9 8 7 7 Storage 8 | . 14 11 11 10 3 6 7 7 7 Hackware 1 | . . . . . . . 4 3 7 Protection 1 | . 7 . . . . . . . . Energy Cannon 11 | . . 16 26 31 18 8 1 3 . Ballistic Gun 3 | . 19 1 2 . . . . . . Ballistic Cannon 2 | . 5 14 . . . . 2 . 4 Launcher 1 | . 1 . 4 . . . 1 . 4 Special Weapon 1 | . . . . . . . 1 7 5 Impact Weapon 1 | . . . . . 1 6 6 . 3 Peak Build Rating 87 | 7 20 28 32 29 45 74 84 87 78 Average Rating 43 | 6 9 22 24 27 34 56 75 76 73 On Entrance 37 | 6 7 20 20 24 29 42 69 82 78 Avg Prop Armor Cover (%) 13 | . . 14 . . 19 1 . . . Naked Turns . | . . . . . . . . . . Heaviest Build 116 | 14 36 39 47 47 45 45 77 116 77 Greatest Support 144 | 40 40 64 64 85 85 46 144 144 107 Greatest Overweight (x) 3 | . 1 3 . . . . . 1 . Average Overweight (x) . | . . 2 . . . . . . . Largest Inventory Capacity 25 | 8 15 15 15 15 15 15 20 25 20 Average Capacity 15 | 8 11 15 15 15 8 14 19 23 20 Most Carried 20 | 6 15 15 15 15 15 15 20 19 19 Average Carried 13 | 5 10 14 14 14 8 10 17 17 16 Final Capacity 20 | 8 15 15 15 15 5 15 20 20 20 Final Carried 19 | 4 15 15 15 14 5 15 19 17 16 Scrap Engine Consumption 56 | . . . . . 17 17 7 15 . Constructs Created 9 | . . . . . 5 2 2 . . Constructs Modified 41 | . . . . . 14 3 16 4 4 Class Distribution -------------------- 30% | Gunner 27% | Construct 21% | Mutant 11% | Commander-Construct 6% | Bothacker-Construct Dominant Class ---------------- Mutant | -10/Materials Gunner | -9/Materials Gunner | -9/Storage Gunner | -9/Garrison Construct | -9/Recycling Construct | -7/Factory Bothacker-Construct | -7/Garrison Commander-Construct | -7/Factory Construct | -7/Garrison Resources | -11 -10 -9 -9 -9 -9 -7 -7 -7 -7 ----------- Run | Yrd Mat Mat Sto Gar Rec Fac Gar Fac Gar Matter Collected 4350 | 214 528 597 442 733 399 380 778 256 23 Remotely . | . . . . . . . . . . Salvage Created 7521 | 80 769 1421 611 1183 783 800 1146 501 227 Parts 454 | 6 50 100 39 69 34 44 52 44 16 Haulers Intercepted 11 | . 2 4 2 . . 2 . 1 . Recyclers Shooed 6 | . 5 . . . 1 . . . . Parts Field Recycled . | . . . . . . . . . . Retrieved Matter . | . . . . . . . . . . Parts Self-Destructed . | . . . . . . . . . . Prevented . | . . . . . . . . . . Parts Restored . | . . . . . . . . . . Kills | -11 -10 -9 -9 -9 -9 -7 -7 -7 -7 ------- Run | Yrd Mat Mat Sto Gar Rec Fac Gar Fac Gar Combat Hostiles Destroyed 177 | . 16 38 15 34 9 16 25 8 16 Melee 2 | . . . . . 1 1 . . . Guns 9 | . 4 . . . . . 2 3 . Cannons 82 | . . 29 9 20 6 7 7 1 3 AOE 73 | . 12 7 6 10 . 7 15 4 12 Classes Destroyed 20 | 2 6 2 . 2 2 2 1 2 1 Worker 17 | . 3 3 2 . . 2 . 7 . Builder 5 | . 1 . 1 . . 1 . 2 . Tunneler 4 | 1 2 . . . . 1 . . . Hauler 11 | . 2 4 2 . . 2 . 1 . Recycler 12 | 1 3 1 . . 4 . . 3 . Mechanic 1 | . . . . . . . . 1 . Operator 8 | . . 2 . . . 4 . 2 . Watcher 5 | . 2 1 . . . 1 . 1 . Swarmer 57 | . 5 14 4 10 . 7 2 3 12 Cutter 3 | . . . . . . . 3 . . Grunt 70 | . 11 14 5 15 3 4 17 . 1 Brawler 3 | . . . . 1 . 1 1 . . Duelist 1 | . . . . 1 . . . . . Sentry 30 | . . 10 6 7 3 1 1 . 2 Demolisher 1 | . . . . . . . . . 1 Hunter 8 | . . . . . . 3 2 3 . Programmer 2 | . . . . . . 1 1 . . Scientist 2 | . . . . . 2 . . . . Scrapper 3 | . . . . . 3 . . . . Assembled 2 | . . . . . . . . 2 . Best Kill Streak 11 | 2 6 9 11 5 7 7 8 5 11 Combat Bots Only 11 | . 4 7 10 5 4 5 8 2 11 Max Kills in Single Turn 4 | 1 4 4 2 3 1 3 3 3 3 Gunslinging . | . . . . . . . . . . Exploded 4 | . 3 4 2 3 . 2 3 2 3 Melee 1 | . . . . . 1 1 . . . Uniques/NPCs Destroyed . | . . . . . . . . . . Combat | -11 -10 -9 -9 -9 -9 -7 -7 -7 -7 -------- Run | Yrd Mat Mat Sto Gar Rec Fac Gar Fac Gar Hostile Shots Fired 804 | . 75 161 37 51 36 118 142 43 141 Missed 288 | . 24 37 13 16 7 62 57 14 58 Hits 516 | . 51 124 24 35 29 56 85 29 83 Melee 8 | . . . . 5 . . . . 3 Projectile 508 | . 51 124 24 30 29 56 85 29 80 AOE 7 | . . . . . . . . . 7 Critical Strikes 17 | . 2 2 . . 1 . 3 3 6 Part Disruptions 3 | . . . . . . . . 1 2 Damage Taken 7101 | . 530 1511 304 524 516 697 959 703 1357 Core 957 | . 108 222 38 43 108 84 142 96 116 Absorbed by Shields 13 | . . . . . . 13 . . . Regen/Repaired (Parts) 1739 | . . . . . . 245 816 290 388 Core Remaining (%) 68 | 100 56 . . . 49 . . . . Volleys Fired 521 | 5 63 75 32 72 35 51 98 60 30 Largest 3 | 2 2 3 3 3 3 1 2 1 2 Hottest 258 | 60 60 166 204 204 204 69 258 131 103 Shots Fired 807 | 10 104 188 60 149 49 52 103 60 32 Gun 165 | 10 86 4 . . . . 30 35 . Cannon 541 | . 2 179 52 137 49 41 48 14 19 Launcher 77 | . 16 5 8 12 . 11 14 2 9 Special 24 | . . . . . . . 11 9 4 Kinetic 229 | 5 88 86 . . 22 28 . . . Thermal 369 | 5 . 97 43 96 27 . 66 35 . Explosive 77 | . 16 5 8 12 . 11 14 2 9 Electromagnetic 108 | . . . 9 41 . 13 12 14 19 Robot Hit Streak 27 | 2 6 13 19 21 27 13 14 8 9 Robot Miss Streak 7 | 1 6 7 3 1 2 2 2 3 2 Penetration Max . | . . . . . . . . . . Secondary Targets 1 | . 1 . . . . . . . . Max Gunslinging Chain 1 | . 1 . . . . . . . . Shots Hit Robots 505 | 4 46 92 35 62 47 43 105 51 20 Core Hits 337 | 3 45 54 23 35 16 39 58 35 29 Critical Kills 5 | . . 2 . . 3 . . . . Critical Parts Destroyed 5 | . . . . . . 1 4 . . Critical Strikes 23 | . . 6 . . 3 1 13 . . Burn 7 | . . . . . . . 7 . . Meltdown 4 | . . 2 . . 2 . . . . Blast 5 | . . 4 . . . . 1 . . Smash 7 | . . . . . 1 1 5 . . Melee Attacks 106 | . 3 . . . 9 15 65 5 9 Impact 90 | . . . . . 9 15 52 5 9 Slashing . | . . . . . . . . . . Piercing . | . . . . . . . . . . Sneak Attacks 24 | . . . . . 3 6 15 . . Combat Hostiles . | . . . . . . . . . . Follow-up Attacks . | . . . . . . . . . . Damage Inflicted 20080 | 49 1729 2310 1189 1992 1306 2678 5581 1673 1573 Guns 2075 | 49 518 60 . . . . 763 685 . Cannons 7075 | . 18 1815 762 1410 815 842 729 347 337 Explosions 7905 | . 1168 425 377 582 45 1026 2454 598 1230 Melee 2891 | . . . . . 446 810 1635 . . Ramming 134 | . 25 10 50 . . . . 43 6 Kinetic 2318 | 39 536 677 . . 446 540 80 . . Thermal 5124 | 10 . 1198 573 880 414 48 1161 840 . Explosive 7631 | . 1168 399 377 582 . 978 2454 443 1230 Electromagnetic 1982 | . . 26 189 530 . 302 251 347 337 Impact 2891 | . . . . . 446 810 1635 . . Slashing . | . . . . . . . . . . Piercing . | . . . . . . . . . . Highest Corruption 18 | . . . 13 13 18 2 . . 3 Average Corruption 11 | . . . 13 13 16 1 . . 2 Corruption Purged 2 | . . . . . . 2 . . . Corruption Blocked . | . . . . . . . . . . Effects 102 | . . . 21 45 25 10 . . 1 Message Errors 27 | . . . 7 10 8 2 . . . Matter Fused 26 | . . . 3 13 6 3 . . 1 Heat Flow Errors 9 | . . . 3 3 3 . . . . Energy Discharges 16 | . . . 4 5 5 2 . . . Parts Fused 1 | . . . . 1 . . . . . Data Loss (minor) 10 | . . . 1 5 2 2 . . . Data Loss (major) 3 | . . . 2 . 1 . . . . Misfires 3 | . . . . 2 . 1 . . . Alerts 3 | . . . . 3 . . . . . Weapon Failures 4 | . . . 1 3 . . . . . Overload Shots 1 | . . . . . . . 1 . . Effects 1 | . . . . . . . 1 . . Heat Surge 1 | . . . . . . . 1 . . Overflow Damage 859 | . . 12 3 25 53 425 284 4 53 Projectiles 88 | . . 12 3 18 . 34 17 4 . Explosions 124 | . . . . 7 . 60 4 . 53 Melee 647 | . . . . . 53 331 263 . . Knockbacks 15 | . . 1 . . 5 7 1 . 1 Impact 7 | . . . . . 2 3 1 . 1 Kinetic 8 | . . 1 . . 3 4 . . . Secondary . | . . . . . . . . . . Self-Inflicted Damage 232 | . 24 5 19 39 . . 79 63 3 Shots 8 | . 1 . 1 1 . . 3 2 . Rammed 17 | . 6 1 7 . . . . 2 1 Targets Rammed 20 | . 7 1 9 . . . . 2 1 Kicked . | . . . . . . . . . . Crushed 3 | . 1 . 2 . . . . . . Highest Temperature 565 | . 54 511 565 370 232 6 361 266 22 Average Temperature 116 | . 20 146 151 110 69 4 69 78 16 Received Heat Transfer 1323 | . 123 258 66 90 243 108 327 48 60 Effects 24 | . . 12 9 3 . . . . . Shutdowns 3 | . . 1 2 . . . . . . Energy Bleed 3 | . . 2 . 1 . . . . . Interference 11 | . . 4 7 . . . . . . Matter Decay 5 | . . 3 . 2 . . . . . Short Circuit 1 | . . 1 . . . . . . . Damage (minor) 1 | . . 1 . . . . . . . Siege Activations . | . . . . . . . . . . Martial Activations . | . . . . . . . . . . Shielding Activations . | . . . . . . . . . . Robots Disrupted 1 | . . . . . . . . 1 . Combat Hostiles 1 | . . . . . . . . 1 . Robots Corrupted 11 | . . . . 3 1 2 4 . 1 Combat Hostiles 8 | . . . . 3 1 1 2 . 1 Parts Fried 25 | . . . 5 5 2 9 2 1 1 Impact Corruptions 22 | . . . . . 2 12 8 . . Robots Melted 5 | . . 2 . 1 2 . . . . Combat Hostiles 4 | . . 2 . 1 1 . . . . Parts Melted 20 | . . 6 1 3 7 . 3 . . Heat Transferred 7188 | 25 . 2039 1036 1443 548 50 1897 150 . Parts Sabotaged . | . . . . . . . . . . Parts Stolen . | . . . . . . . . . . Parts Stripped . | . . . . . . . . . . Power Chain Reactions 4 | . . . . . 1 1 . 2 . Alert | -11 -10 -9 -9 -9 -9 -7 -7 -7 -7 ------- Run | Yrd Mat Mat Sto Gar Rec Fac Gar Fac Gar Maximum Alert Level 5 | . . 3 2 4 2 2 5 3 3 Low Security (%) 18 | 100 100 19 . . . 5 . . . Level 1 17 | . . 34 15 13 40 63 . . . Level 2 41 | . . 36 84 21 59 31 41 81 52 Level 3 12 | . . 9 . 39 . . 11 17 47 Level 4 9 | . . . . 25 . . 39 . . Level 5 1 | . . . . . . . 7 . . High Security . | . . . . . . . . . . Max Security . | . . . . . . . . . . Sterilizations 1 | . 1 . . . . . . . . Peak Influence 1658 | 10 193 739 614 1324 625 598 1658 879 890 Initial 870 | . . 40 301 282 595 343 404 870 459 Average 542 | 2 107 416 454 843 435 357 998 564 700 Influence Increases 7334 | 10 611 1157 554 1082 313 831 1364 951 461 Destroy 0b10 Robot/C 3880 | . 320 760 300 680 120 360 660 360 320 Destroy 0b10 Robot/NC 390 | 10 65 55 25 5 20 55 30 125 . Destroy Leader 600 | . 78 180 94 20 10 86 30 92 10 Allied During Kill 435 | . . . . 4 . 92 120 215 4 Successful Hack 36 | . . 14 7 . 5 . . 10 . Select Force Hacks 200 | . 60 50 . . 90 . . . . Disable Machine 315 | . 45 60 15 . 30 30 60 75 . Anti-Garrison Action 600 | . . . . 250 . . 300 . 50 Destroy Structure 578 | . 43 38 53 123 8 28 164 74 47 Advance Influence 150 | . . . . . . 150 . . . Partial Spotted 15 | . . . . . . . . . 15 Lose Combat Pursuer 135 | . . . 60 . 30 30 . . 15 Influence Decreases 6454 | 10 515 538 834 193 1175 715 284 1953 237 Entered New Map 2780 | . . 56 414 153 729 269 174 788 197 Time Decay 2549 | 10 515 392 270 . 446 386 . 530 . Lost Part 160 | . . 90 . 20 . . 10 . 40 Lost Ally 240 | . . . . 20 . 60 100 60 . Purge Threat 725 | . . . 150 . . . . 575 . Squads Dispatched 32 | . 5 6 4 . 1 5 . 11 . Investigation 13 | . 4 4 2 . 1 . . 2 . Extermination 4 | . . . . . . 2 . 2 . Reinforcement 11 | . 1 1 1 . . 2 . 6 . Assault 1 | . . 1 . . . . . . . Garrison 3 | . . . 1 . . 1 . 1 . Intercept . | . . . . . . . . . . Searches Triggered . | . . . . . . . . . . Construction Impeded 3 | . . . 1 . . 1 . 1 . Haulers Reinforced 1 | . . . . . . . . 1 . Active Scanning Responses . | . . . . . . . . . . Cargo Convoy Interrupts 1 | . . . . . . . . 1 . Stealth | -11 -10 -9 -9 -9 -9 -7 -7 -7 -7 --------- Run | Yrd Mat Mat Sto Gar Rec Fac Gar Fac Gar Distress Signals 8 | . 1 3 1 . . 1 . 2 . Communications Jammed . | . . . . . . . . . . Distress Signals . | . . . . . . . . . . Times Spotted 242 | . 25 45 20 27 10 28 30 33 24 Peak Tracking Total 7 | . 5 6 7 3 4 5 5 5 4 Tactical Retreats 5 | . . . 2 . 1 1 . . 1 Traps | -11 -10 -9 -9 -9 -9 -7 -7 -7 -7 ------- Run | Yrd Mat Mat Sto Gar Rec Fac Gar Fac Gar Traps Triggered 14 | . 3 2 1 2 . 3 1 2 . Indirectly . | . . . . . . . . . . Trap Hack Attempts 56 | . 56 . . . . . . . . Triggered . | . . . . . . . . . . Disarmed . | . . . . . . . . . . Reprogrammed 4 | . 4 . . . . . . . . Reused . | . . . . . . . . . . Traps Extracted . | . . . . . . . . . . Installed . | . . . . . . . . . . Triggered . | . . . . . . . . . . Machines | -11 -10 -9 -9 -9 -9 -7 -7 -7 -7 ---------- Run | Yrd Mat Mat Sto Gar Rec Fac Gar Fac Gar Machines Disabled 29 | . 3 4 1 4 2 2 7 5 1 Max in Single Turn 2 | . 2 1 1 2 1 1 1 2 1 Garrison Access 1 | . . . . . . 1 . . . Garrison Relay 5 | . . . . 1 . . 3 . 1 Phase Generator 2 | . . . . 1 . . 1 . . Machines Repaired . | . . . . . . . . . . Machines Dismantled . | . . . . . . . . . . Machines Sabotaged 1 | . . 1 . . . . . . . Overloaded Fab Kills . | . . . . . . . . . . Hacking | -11 -10 -9 -9 -9 -9 -7 -7 -7 -7 --------- Run | Yrd Mat Mat Sto Gar Rec Fac Gar Fac Gar Machines Accessed 40 | . 6 5 3 3 5 5 2 11 . Terminals 23 | . 4 4 2 3 1 2 2 5 . Fabricators 3 | . . . . . . 1 . 2 . Repair Stations 2 | . . . . . . . . 2 . Recycling Units 5 | . 2 . . . 3 . . . . Scanalyzers 2 | . . 1 . . . . . 1 . Garrison Access 4 | . . . 1 . . 2 . 1 . Total Hacks 82 | . 10 10 8 6 7 7 6 28 . Successful 42 | . 6 5 3 1 6 3 . 18 . Failed 40 | . 4 5 5 5 1 4 6 10 . Catastrophic 10 | . 2 1 . 2 . 2 2 1 . Database Lockouts . | . . . . . . . . . . Manual 36 | . 10 8 5 . 3 . . 10 . Terminals 54 | . 8 8 7 6 2 4 6 13 . Fabricators 5 | . . . . . . 1 . 4 . Repair Stations 4 | . . . . . . . . 4 . Recycling Units 5 | . 2 . . . 3 . . . . Scanalyzers 8 | . . 2 . . . . . 6 . Garrison Access 4 | . . . 1 . . 2 . 1 . Terminal Hacks 15 | . 4 1 2 1 3 . . 4 . Part Schematic 2 | . 1 . . . . . . 1 . Robot Analysis 3 | . 2 . 1 . . . . . . Branch Access Points 1 | . . 1 . . . . . . . Emergency Access Points 1 | . . . . 1 . . . . . Terminal Index 1 | . . . . . . . . 1 . Unreport Threat 3 | . . . 1 . . . . 2 . Locate Traps 1 | . 1 . . . . . . . . Zone Layout 1 | . . . . . 1 . . . . Release Object 2 | . . . . . 2 . . . . Fabricator Hacks 4 | . . . . . . 1 . 3 . Network Status 2 | . . . . . . 1 . 1 . Load Schematic 1 | . . . . . . . . 1 . Build 1 | . . . . . . . . 1 . Repair Station Hacks 2 | . . . . . . . . 2 . Scan Component 1 | . . . . . . . . 1 . Repair 1 | . . . . . . . . 1 . Recycling Unit Hacks . | . . . . . . . . . . Scanalyzer 8 | . . 2 . . . . . 6 . Insert Component 2 | . . . . . . . . 2 . Analyze 2 | . . . . . . . . 2 . Retrieve Study 4 | . . 2 . . . . . 2 . Garrison Access Hacks 4 | . . . 1 . . 2 . 1 . Unlock Access 3 | . . . 1 . . 1 . 1 . Seal Access 1 | . . . . . . 1 . . . Unauthorized Hacks 9 | . 2 2 . . 3 . . 2 . Terminals 4 | . . 2 . . . . . 2 . Botnet 2 | . . 1 . . . . . 1 . Operators 1 | . . . . . . . . 1 . Sabotage 1 | . . 1 . . . . . . . Fabricators . | . . . . . . . . . . Repair Stations . | . . . . . . . . . . Recycling Units 5 | . 2 . . . 3 . . . . Tunnel 5 | . 2 . . . 3 . . . . Scanalyzers . | . . . . . . . . . . Garrison Access . | . . . . . . . . . . Data Cores Recovered 7 | . . 2 . . . 2 . 3 . Used 1 | . . . . . . . . 1 . Hacking Detections 28 | . 4 3 3 2 . 4 2 10 . Full Trace Events 6 | . 1 1 1 1 . . 1 1 . Feedback Events . | . . . . . . . . . . Feedback Blocked . | . . . . . . . . . . Robot Schematics Acquired . | . . . . . . . . . . Robots Built . | . . . . . . . . . . Authchips . | . . . . . . . . . . Time . | . . . . . . . . . . Total Robot Build Rating . | . . . . . . . . . . Part Schematics Acquired 4 | . 1 . . . . . . 3 . Parts Built 1 | . . . . . . . . 1 . Authchips . | . . . . . . . . . . Time 51 | . . . . . . . . 51 . Total Part Build Rating 1 | . . . . . . . . 1 . Part Studies Acquired 4 | . . 2 . . . . . 2 . Parts Repaired 1 | . . . . . . . . 1 . Time 78 | . . . . . . . . 78 . Parts Recycled . | . . . . . . . . . . Recycled Matter . | . . . . . . . . . . Retrieved Matter . | . . . . . . . . . . Retrieved Components . | . . . . . . . . . . Parts Scanalyzed 2 | . . . . . . . . 2 . Part Schematics Acquired 2 | . . . . . . . . 2 . Parts Damaged 1 | . . . . . . . . 1 . Bothacking | -11 -10 -9 -9 -9 -9 -7 -7 -7 -7 ------------ Run | Yrd Mat Mat Sto Gar Rec Fac Gar Fac Gar Used RIF Installer 2 | . . . . 1 . . 1 . . Command Fork 1 | . . . . . . . 1 . . Autooverride 1 | . . . . 1 . . . . . Robots Hacked 12 | . 1 . . . . . 5 5 1 Non-combat 4 | . 1 . . . . . . 3 . Combat 8 | . . . . . . . 5 2 1 Autooverrided 2 | . . . . . . . 1 1 . Robot Hacks Applied 13 | . 1 . . . . . 5 5 2 parse_system 1 | . 1 . . . . . . . . drop_inventory 1 | . . . . . . . . 1 . purge_threat 2 | . . . . . . . . 2 . amplify_resonance 3 | . . . . . . . 2 . 1 reboot_system 1 | . . . . . . . 1 . . overwrite_iff 1 | . . . . . . . . . 1 formatsys_high 4 | . . . . . . . 2 2 . Relay Couplers Released 17 | . . . . 3 . 1 10 . 3 Machine Destruction 17 | . . . . 3 . 1 10 . 3 Attached 8 | . . . . . . . 3 4 1 Fabnet Peak Effective % . | . . . . . . . . . . Robots Rewired 10 | . . . . 1 . . 8 1 . Allies Hacked . | . . . . . . . . . . Hacks Repelled . | . . . . . . . . . . Allies | -11 -10 -9 -9 -9 -9 -7 -7 -7 -7 -------- Run | Yrd Mat Mat Sto Gar Rec Fac Gar Fac Gar Total Allies 22 | . . . . 1 . 4 12 4 1 Largest Group 7 | . . . . 1 . 4 6 7 1 Highest-Rated Group 329 | . . . . 21 . 80 271 329 13 Highest-Rated Ally 95 | . . . . 21 . 20 95 95 13 Total Orders 1 | . . . . . . . . 1 . STAY 1 | . . . . . . . . 1 . Ally Attacks 142 | . . . . . . 6 83 52 1 Total Damage 3481 | . . . . . . 143 1136 2202 . Kills 34 | . . . . . . 2 8 24 . Allies Corrupted 1 | . . . . . . . . 1 . Allies Melted . | . . . . . . . . . . X0-1V1 Amusement Gains 185 | . 8 10 . 75 19 10 20 30 13 Average Entertainment 57 | . 6 8 8 43 95 65 68 69 92 Good Acts 48 | . . 3 5 12 9 3 11 2 3 Bad Acts 31 | . 1 7 1 2 5 5 1 7 2 Intel | -11 -10 -9 -9 -9 -9 -7 -7 -7 -7 ------- Run | Yrd Mat Mat Sto Gar Rec Fac Gar Fac Gar Active Infowar (turns) 525 | 17 508 . . . . . . . . Seismic 525 | 17 508 . . . . . . . . Robot Analysis Total 3 | . 2 . 1 . . . . . . Derelict Logs Recovered . | . . . . . . . . . . Drone Launches . | . . . . . . . . . . Drone Recoveries . | . . . . . . . . . . Exploration | -11 -10 -9 -9 -9 -9 -7 -7 -7 -7 ------------- Run | Yrd Mat Mat Sto Gar Rec Fac Gar Fac Gar Turns Passed 9615 | 42 1473 931 592 1377 1101 911 1358 1484 346 Spaces Moved 5486 | 17 673 498 284 716 445 871 833 991 158 Core . | . . . . . . . . . . Treads 2717 | 9 642 19 284 716 279 301 . 463 4 Legs 238 | 8 . . . . 18 . 212 . . Wheels 827 | . 31 479 . . 148 169 . . . Hover 1271 | . . . . . . . 589 528 154 Flight 433 | . . . . . . 401 32 . . Fastest Speed 58 | 120 105 105 150 150 71 58 58 94 118 Average Speed 121 | 141 157 118 150 152 126 72 101 124 118 Slowest Speed 240 | 160 160 240 150 156 156 92 180 196 148 Overloaded Moves . | . . . . . . . . . . Propulsion Burnouts . | . . . . . . . . . . Robots Hopped 8 | . . . . . . 8 . . . Potential Cave-ins 2 | . . 2 . . . . . . . Cave-ins Triggered 1 | . . 1 . . . . . . . Exploration Rate (%) 53 | 3 82 65 47 86 72 30 93 29 27 Regions Visited 9 Branch Regions 2 Pre-discovered Areas 5 | . 2 . . . 3 . . . . Known Exits Taken 4 | . . 1 1 . . 1 . 1 . Unknown Exits Taken 3 | 1 1 . . . 1 . . . . Scrap Searched . | . . . . . . . . . . Spaces Dug 27 | . . . . . 1 1 15 4 6 Terrain Destroyed 550 | . 66 36 60 136 7 36 101 55 53 Melee 27 | . . . . . 1 1 15 4 6 Projectile 6 | . . 2 . . 3 1 . . . AOE 517 | . 66 34 60 136 3 34 86 51 47 Terrain Rammed . | . . . . . . . . . . Walls Destroyed . | . . . . . . . . . . Machines Disabled . | . . . . . . . . . . Actions | -11 -10 -9 -9 -9 -9 -7 -7 -7 -7 --------- Run | Yrd Mat Mat Sto Gar Rec Fac Gar Fac Gar Total 7542 | 26 977 689 393 879 926 1064 1150 1172 266 Wait 986 | . 129 36 38 60 409 62 106 86 60 Move 5464 | 16 672 496 284 715 444 856 832 991 158 Hop 7 | . . . . . . 7 . . . Pick Up 87 | . 15 21 6 6 3 13 17 4 2 Fast Attach 27 | 1 2 7 3 . 2 7 1 4 . Attach 37 | 2 . 10 . 3 1 5 7 6 3 Detach 13 | . . . . . . 5 4 3 1 Swap 75 | . 20 14 12 12 . 6 4 5 2 Drop 100 | 2 10 20 9 5 23 9 16 6 . Fire 521 | 5 63 75 32 72 35 51 98 60 30 Melee 106 | . 3 . . . 9 15 65 5 9 Ram 4 | . 1 1 . . . . . 1 1 Kick . | . . . . . . . . . . Crush 16 | . 6 . 9 . . . . 1 . Escape Stasis 37 | . . 9 . . . 28 . . . Rewire 6 | . . . . 6 . . . . . Trap 56 | . 56 . . . . . . . . Miscellaneous . | . . . . . . . . . . Route ------- -11/Scrapyard -10/Materials (discovered 5 exits: *Mat x3 / [*Min] / [*Sub]) -9/Materials (discovered 5 exits: *Mat x3 / *Min / *Sto) -9/Storage -9/Garrison (discovered 3 exits: *Rec x3) -9/Recycling -7/Factory (discovered 4 exits: *Fac x2 / [*Low] / Gar) -7/Garrison (discovered 3 exits: *Fac x3) -7/Factory -7/Garrison (discovered 1 exit: Fac) History --------- Turn | Location | Event 17 | -11/Scrapyard | Discovered new exit (range 3) 43 | -11/Scrapyard | Entered Materials 175 | -10/Materials | Discovered new exit (range 13) 300 | -10/Materials | Build established: Mutant 703 | -10/Materials | Discovered new exit (range 11) 770 | -10/Materials | Discovered new exit (range 5) 941 | -10/Materials | Discovered new exit (range 9) 1160 | -10/Materials | Discovered new exit (range 14) 1357 | -10/Materials | Prayed at D.C.S.S. Altar Unit 1370 | -10/Materials | X0-1V1 made a cryptic comment about sterilization and BL-4Z3 1507 | -10/Materials | Sterilization system engaged 1507 | -10/Materials | Non-combat units ordered to evacuate 1516 | -10/Materials | Entered another Materials area 1516 | -9/Materials | Evolved 2 slots: Propulsion x1, Weapon x1 1690 | -9/Materials | Discovered new exit (range 8) 1690 | -9/Materials | X0-1V1 sent you into danger 1744 | -9/Materials | Destroyed 7 combat bots 1832 | -9/Materials | Build established: Gunner 1952 | -9/Materials | X0-1V1 caused items to flee you 1979 | -9/Materials | Discovered new exit (range 3) 2064 | -9/Materials | Identified exit to Mines 2064 | -9/Materials | Identified exit to Storage 2095 | -9/Materials | Items stopped fleeing you 2096 | -9/Materials | X0-1V1 vaporized surrounding terrain (radius 16) 2096 | -9/Materials | Discovered new exit (range 9) 2126 | -9/Materials | Crushed by falling debris 2261 | -9/Materials | X0-1V1 foreshadows a heat wave 2333 | -9/Materials | Core integrity fell below 50% 2391 | -9/Materials | Lost 4 parts (1u3w) 2405 | -9/Materials | Identified exit to Materials 2405 | -9/Materials | X0-1V1 revealed exit location to -8/Materials 2423 | -9/Materials | Ambient heat levels rising (+10) 2447 | -9/Materials | Entered Storage 2517 | -9/Storage | System corruption reached 10% 2552 | -9/Storage | Melee accuracy permanently improved by X0-1V1 (+8%; -80 max core) 2603 | -9/Storage | Destroyed 10 combat bots 2719 | -9/Storage | Met 01-MTF 2988 | -9/Storage | Garrison activated, responded to threat 3039 | -9/Storage | Identified exit to Garrison 3039 | -9/Storage | Entered Garrison 3039 | -9/Garrison | Accompanied by 1 ally (01-MTF) 3042 | -9/Garrison | 01-MTF left 3143 | -9/Garrison | Triggered checkpoint 3188 | -9/Garrison | Triggered checkpoint 3214 | -9/Garrison | Triggered checkpoint 3221 | -9/Garrison | Triggered checkpoint 3441 | -9/Garrison | Discovered new exit (range 11) 3473 | -9/Garrison | Triggered checkpoint 3518 | -9/Garrison | Garrison Relay disabled 3543 | -9/Garrison | Phase Generator disabled 3578 | -9/Garrison | X0-1V1 vaporized surrounding terrain (radius 20) 3578 | -9/Garrison | Spotted B-75 Beast 3776 | -9/Garrison | Triggered checkpoint 3816 | -9/Garrison | Discovered new exit (range 12) 3874 | -9/Garrison | X0-1V1 activates XOMVISION 3919 | -9/Garrison | Triggered checkpoint 3954 | -9/Garrison | Identified exit to Recycling 3954 | -9/Garrison | X0-1V1 revealed exit location to -9/Recycling 4141 | -9/Garrison | Triggered checkpoint 4191 | -9/Garrison | Installed Relay Interface Framework 4197 | -9/Garrison | Propulsion slot count permanently improved by X0-1V1 (+1) 4235 | -9/Garrison | X0-1V1 activates XOMVISION 4239 | -9/Garrison | Core integrity restored by X0-1V1 (+73) 4272 | -9/Garrison | Expanded RIF knowledge: Autooverride 4416 | -9/Garrison | Entered Recycling 4699 | -9/Recycling | Heat dissipation permanently improved by X0-1V1 (+20; -100 max core) 4700 | -9/Recycling | X0-1V1 mutated your Weapon slot to Power slot 4744 | -9/Recycling | Scanned before Scraplab entrance 4760 | -9/Recycling | Angered Scraplab inhabitants 4847 | -9/Recycling | Found Prototype Device 4847 | -9/Recycling | Identified Scrap Engine 4914 | -9/Recycling | X0-1V1 vaporized surrounding terrain (radius 15) 4941 | -9/Recycling | X0-1V1 activates XOMVISION 5300 | -9/Recycling | Build established: Construct 5344 | -9/Recycling | X0-1V1 activates XOMVISION 5406 | -9/Recycling | Core integrity restored by X0-1V1 (+46) 5505 | -9/Recycling | Discovered new exit (range 16) 5517 | -9/Recycling | Entered Factory 5517 | -7/Factory | Evolved 4 slots: Propulsion x1, Utility x2, Weapon x1 5799 | -7/Factory | Discovered new exit (range 10) 5889 | -7/Factory | Identified exit to Factory 5935 | -7/Factory | X0-1V1 sent you to a vault 6059 | -7/Factory | Discovered new exit (range 6) 6084 | -7/Factory | X0-1V1 vaporized surrounding terrain (radius 22) 6175 | -7/Factory | Garrison activated, responded to threat 6263 | -7/Factory | X0-1V1 announced a LAN party 6355 | -7/Factory | X0-1V1 enhanced Transport squad support 6383 | -7/Factory | Discovered exit to Factory (range 14) 6428 | -7/Factory | Identified exit to Garrison 6428 | -7/Factory | Entered Garrison 6446 | -7/Garrison | Triggered checkpoint 6488 | -7/Garrison | X0-1V1 activates XOMVISION 6635 | -7/Garrison | X0-1V1 caused items to flee you 6687 | -7/Garrison | Identified exit to Factory 6687 | -7/Garrison | X0-1V1 revealed exit location to -7/Factory 6737 | -7/Garrison | Garrison Relay disabled 6788 | -7/Garrison | Triggered checkpoint 6790 | -7/Garrison | Triggered checkpoint 6827 | -7/Garrison | Lost 4 allies 6856 | -7/Garrison | Items stopped fleeing you 7018 | -7/Garrison | Triggered checkpoint 7038 | -7/Garrison | Triggered checkpoint 7042 | -7/Garrison | Triggered checkpoint 7070 | -7/Garrison | Destroyed 8 combat bots 7144 | -7/Garrison | Triggered checkpoint 7163 | -7/Garrison | Garrison Relay disabled 7254 | -7/Garrison | X0-1V1 destroyed Phase Generator 7254 | -7/Garrison | Phase Generator disabled 7468 | -7/Garrison | Build established: Bothacker-Construct 7530 | -7/Garrison | Discovered exit to Factory (range 5) 7540 | -7/Garrison | Found embedded Infiltrators 7546 | -7/Garrison | Triggered checkpoint 7600 | -7/Garrison | Garrison Relay disabled 7709 | -7/Garrison | Expanded RIF knowledge: Command Fork 7723 | -7/Garrison | Triggered checkpoint 7741 | -7/Garrison | Discovered exit to Factory (range 12) 7786 | -7/Garrison | Entered Factory 7786 | -7/Factory | Accompanied by 5 allies 7959 | -7/Factory | Fabricated Huge Storage Unit? 8097 | -7/Factory | X0-1V1 announced a LAN party 8123 | -7/Factory | Build established: Commander-Construct 8402 | -7/Factory | Repaired Broken Imp. Weapon Cycler 8633 | -7/Factory | Lost 3 allies 8909 | -7/Factory | Build established: Construct 8978 | -7/Factory | Core integrity fell below 50% 8991 | -7/Factory | Found Prototype Launcher 8991 | -7/Factory | Identified Rocket Array 9005 | -7/Factory | Assembled infested ambush trap array 9098 | -7/Factory | Cargo convoy interrupted 9190 | -7/Factory | Garrison activated, responded to threat 9270 | -7/Factory | Identified exit to Garrison 9270 | -7/Factory | Entered Garrison 9358 | -7/Garrison | Triggered checkpoint 9385 | -7/Garrison | Garrison Relay disabled 9431 | -7/Garrison | Triggered checkpoint 9444 | -7/Garrison | Triggered checkpoint 9452 | -7/Garrison | X0-1V1 caused items to flee you 9465 | -7/Garrison | Triggered checkpoint 9472 | -7/Garrison | Triggered checkpoint 9501 | -7/Garrison | Destroyed 11 combat bots 9504 | -7/Garrison | Core integrity fell below 20% 9546 | -7/Garrison | X0-1V1 revealed exit location to -6/Factory 9616 | -7/Garrison | Self-destructed Last Messages --------------- Core. 09517_ Shotgun EM Proton Construct/C destroyed. 09517_ Arm. Scrap Engine damaged due to network destabilization (-8). 09517_ P-60 Hacker destroyed. 09534_ X0-1V1 stares into the ether. P-60 Hacker form shifts and blurs. 09541_ The unstable cave ceiling collapses. 09546_ X0-1V1: "I guarantee there's even more fun over that way." 09546_ EXIT=REVEALED: FACTORY 09562_ System corrupted: Matter fused (-6). 09601_ X0-1V1: "The ol' switcheroo!" Form resolidifies at new position. 09605_ Relay Coupler [Swarmer] crushed and broken. 09605_ C-17 Slicer springs to life. 09607_ Slammed into P-60 Hacker. 09607_ P-60 Hacker knocked back. 09613_ Remote Datajack+ destroyed. Map ----- +----------------------------------------------------+ | ??????????????????????????????????????????? | | ??????????????????????????????????????????# | | ??????????????????????????????????????????# | | ??????????????????????????????????????????# | | ??????????????????????????????????????????# | | ??????????????????????????????????????????# | | ??????????????????????????????????????????# | | ??????????????????????????????????????????# | | ??????????????????????????????????????????# | | ??????????????????????????????????????????# | | ??????????????????????????????????????????# | | ??????????????????????????????????????????# | | ????????????????????????????????????????### | | ????????????????????????????????????????# | | ????????????????????????????????????????# ! | | ????????????????????????????????????????#% | | ????????????????????????????????????????#[ | | ????????????????????????????????????????### | | ????????????????????????????????########### | | ????????????????????????????????# !% | | ????????????????????????????????# | | ???????????######???#######?????# ######## | | ????????????+ # ??## # ##????# #?????# | | ????????????# # ?# # # ##????# #?????# # | | ????????????#+###c## # ######### ### #### | | ????????????# pc c@ + [ | | ????????????#+######### ######## ##### ### | | ????????????# ?????# # ###### #???#?# | | ????????????+ !?????# ## ######### | | ????????????###?????# # ### ## | | ????????????????????### ###?# ## | | ??????????????????????# ##???# ## ########## | | ??????????????????????# #????# ## #????????# | | ??????????????????????# ###### ## #????????? | | ??????????????????????# " " #????????? | | ??????????????????????### !##### #????????? | | ???????????????????????#"" ""#?## #????????? | | ???????????????????????#######?#[ ####?????? | | ???????????????????????????????# =# ##????? | | ???????????????????????????????# # #????? | | ????????????????????????###????## !##????? | | ???????????????????????##"###### # #????? | | ??????????????????????## #????? | | ??????????????????????#" * ##????? | | ??????????????????????## ###### ## ##????? | | ???????????????????????# #????# #?###?????? | | ???????????????????????##"##????###?????????? | | ????????????????????????###?????????????????? | | ????????????????????????????????????????????? | | ????????????????????????????????????????????? | +----------------------------------------------------+ Best States ------------- Heat Dissipation 90 Energy Generation 60 Energy Capacity 1680 Matter Stores 900 Matter Capacity 1000 Sight Range 19 Terrain Scan Density 10 Additional Mass Support 6 Armor Coverage 150 Evasion (%) 58 Recoil Reduction 5 Relay Coupler Types 1 Relay Coupler Value 31 Item Schematics ----------------- Huge Storage Unit | -10/Materials | Hacked Gatling Laser | -7/Factory | Hacked Imp. Cooling System | -7/Factory | Scanalyzed Imp. Weapon Cycler | -7/Factory | Scanalyzed Robot Schematics ------------------ None Fabricated ------------ Huge Storage Unit | x1 | -7/Factory Repaired ---------- Imp. Weapon Cycler | 99% | -7/Factory | Broken Studied --------- Wheel | -9/Materials | Hacked Grenade Launcher | -9/Materials | Hacked Hvy. Missile Launcher | -7/Factory | Hacked Remote Datajack | -7/Factory | Hacked Alien Tech Used ----------------- None Achievements -------------- None Challenges ------------ None Game ------ Seed WarlordVortexAutogun Manual? 0 Play Time 01:20:36 Cumulative 686.4 hours Start 2026.09.16 @ 21:53:38 End 2026.09.17 @ 03:06:53 Sessions 5 Manual Loads 0 Difficulty Rogue Special Mode None Game No. 621 Rogue 585 Adventurer 36 Explorer 0 Win Type - Total 8 Types 2/2/0/1/1/0/0/2/0/0 Lore% 86 Gallery% 76 Achievement% 70 Wizard Run 0 Options --------- Layout 1 ASCII 0 Keyboard 0 Movement Numpad Keybinds 0 Fullscreen 1 Font 48/Smallcaps Map View 50x35 Zoom Use 0% Tactical HUD 1 Map Filters NONE Filters NONE Steam 1 RUN: 8a17edf4-2bc5-4f27-ab52-fe8af1fba144